[Event "Titled Tuesday Blitz May 31 Early 2022"]
[White "Secer, Ata"]
[Black "Riehle, Marco"]
[WhiteFideId "6303293"]
[BlackFideId "12904392"]
[WhiteElo "2282"]
[BlackElo "2462"]
[Result "1-0"]
[Round "06"]
[TimeControl "180+1"]
[Date "2022.06.01"]
[WhiteClock "0:00:15"]
[BlackClock "0:00:48"]

1. e4 {[%clk 0:03:00]}  e5 {[%clk 0:02:59]} 2. Nf3 {[%clk 0:03:01]}  Nf6 {[%clk 0:02:59]} 3. Nxe5 {[%clk 0:03:00]}  Nxe4 {[%clk 0:02:59]} 4. Qe2 {[%clk 0:03:00]}  Qe7 {[%clk 0:02:59]} 5. Qxe4 {[%clk 0:02:59]}  d6 {[%clk 0:03:00]} 6. d4 {[%clk 0:02:59]}  dxe5 {[%clk 0:03:00]} 7. dxe5 {[%clk 0:03:00]}  Nc6 {[%clk 0:03:00]} 8. Nc3 {[%clk 0:02:50]}  Qxe5 {[%clk 0:02:59]} 9. Qxe5+ {[%clk 0:02:39]}  Nxe5 {[%clk 0:03:00]} 10. Nb5 {[%clk 0:02:31]}  Bb4+ {[%clk 0:02:58]} 11. c3 {[%clk 0:02:13]}  Ba5 {[%clk 0:02:57]} 12. Bf4 {[%clk 0:02:13]}  f6 {[%clk 0:02:56]} 13. O-O-O {[%clk 0:02:03]}  O-O {[%clk 0:02:54]} 14. Bxe5 {[%clk 0:02:02]}  fxe5 {[%clk 0:02:55]} 15. f3 {[%clk 0:02:02]}  Be6 {[%clk 0:02:52]} 16. Na3 {[%clk 0:01:58]}  Bxa2 {[%clk 0:02:30]} 17. Bc4+ {[%clk 0:01:58]}  Bxc4 {[%clk 0:02:29]} 18. Nxc4 {[%clk 0:01:59]}  Bb6 {[%clk 0:02:29]} 19. Rhe1 {[%clk 0:01:52]}  Rae8 {[%clk 0:02:26]} 20. Kc2 {[%clk 0:01:15]}  h6 {[%clk 0:02:05]} 21. Rd7 {[%clk 0:01:02]}  Rf7 {[%clk 0:02:00]} 22. Rxf7 {[%clk 0:00:57]}  Kxf7 {[%clk 0:02:01]} 23. Rxe5 {[%clk 0:00:58]}  Rxe5 {[%clk 0:01:56]} 24. Nxe5+ {[%clk 0:00:59]}  Ke6 {[%clk 0:01:56]} 25. Nc4 {[%clk 0:00:56]}  Bg1 {[%clk 0:01:56]} 26. h3 {[%clk 0:00:57]}  b5 {[%clk 0:01:56]} 27. Nd2 {[%clk 0:00:56]}  Ke5 {[%clk 0:01:41]} 28. Kd3 {[%clk 0:00:56]}  Kf4 {[%clk 0:01:39]} 29. Ne4 {[%clk 0:00:57]}  a5 {[%clk 0:01:33]} 30. Ke2 {[%clk 0:00:55]}  c5 {[%clk 0:01:28]} 31. g3+ {[%clk 0:00:54]}  Ke5 {[%clk 0:01:26]} 32. Kf1 {[%clk 0:00:46]}  Be3 {[%clk 0:01:26]} 33. Ke2 {[%clk 0:00:46]}  Bg1 {[%clk 0:01:13]} 34. Kf1 {[%clk 0:00:45]}  Be3 {[%clk 0:01:13]} 35. Ke2 {[%clk 0:00:46]}  Bc1 {[%clk 0:01:07]} 36. Nxc5 {[%clk 0:00:45]}  Bxb2 {[%clk 0:01:04]} 37. Nd3+ {[%clk 0:00:44]}  Kd5 {[%clk 0:01:04]} 38. Nxb2 {[%clk 0:00:44]}  a4 {[%clk 0:01:05]} 39. Nd3 {[%clk 0:00:14]}  Kc4 {[%clk 0:01:00]} 40. Kd2 {[%clk 0:00:14]}  Kb3 {[%clk 0:00:58]} 41. Nb4 {[%clk 0:00:13]}  a3 {[%clk 0:00:57]} 42. Kd3 {[%clk 0:00:12]}  a2 {[%clk 0:00:52]} 43. Nxa2 {[%clk 0:00:13]}  Kxa2 {[%clk 0:00:53]} 44. f4 {[%clk 0:00:13]}  Kb3 {[%clk 0:00:48]} 45. g4 {[%clk 0:00:14]}  Ka4 {[%clk 0:00:48]} 46. f5 {[%clk 0:00:13]}  h5 {[%clk 0:00:46]} 47. gxh5 {[%clk 0:00:12]}  Ka5 {[%clk 0:00:46]} 48. f6 {[%clk 0:00:12]}  gxf6 {[%clk 0:00:46]} 49. h6 {[%clk 0:00:12]}  f5 {[%clk 0:00:46]} 50. h7 {[%clk 0:00:13]}  Kb6 {[%clk 0:00:46]} 51. h8=Q {[%clk 0:00:14]}  f4 {[%clk 0:00:47]} 52. Qf6+ {[%clk 0:00:15]}  Ka5 {[%clk 0:00:48]} 53. Qxf4 {[%clk 0:00:15]} 1-0


[Site "https://www.chess.com"]

[Event "Titled Tuesday Blitz May 31 Early 2022"]
[White "Stevens, Christian"]
[Black "Atakhan, Abtin"]
[WhiteFideId "2604450"]
[BlackFideId "22502203"]
[WhiteElo "2501"]
[BlackElo "2094"]
[Result "0-1"]
[Round "06"]
[TimeControl "180+1"]
[Date "2022.06.01"]
[WhiteClock "0:00:02"]
[BlackClock "0:00:12"]

1. d4 {[%clk 0:03:00]}  d5 {[%clk 0:02:59]} 2. c4 {[%clk 0:02:30]}  c6 {[%clk 0:02:57]} 3. Nc3 {[%clk 0:02:28]}  Nf6 {[%clk 0:02:55]} 4. e3 {[%clk 0:02:25]}  a6 {[%clk 0:02:53]} 5. Bd3 {[%clk 0:02:21]}  dxc4 {[%clk 0:02:51]} 6. Bxc4 {[%clk 0:02:20]}  b5 {[%clk 0:02:51]} 7. Bb3 {[%clk 0:02:19]}  Bb7 {[%clk 0:02:49]} 8. Nf3 {[%clk 0:02:18]}  e6 {[%clk 0:02:50]} 9. O-O {[%clk 0:02:18]}  c5 {[%clk 0:02:48]} 10. Qe2 {[%clk 0:02:13]}  Nbd7 {[%clk 0:02:41]} 11. Rd1 {[%clk 0:02:12]}  Qc7 {[%clk 0:02:30]} 12. d5 {[%clk 0:02:04]}  c4 {[%clk 0:02:30]} 13. dxe6 {[%clk 0:02:04]}  fxe6 {[%clk 0:02:31]} 14. Bc2 {[%clk 0:02:04]}  Bd6 {[%clk 0:02:30]} 15. h3 {[%clk 0:01:49]}  O-O {[%clk 0:02:30]} 16. e4 {[%clk 0:01:43]}  Ne5 {[%clk 0:02:09]} 17. Nd4 {[%clk 0:01:36]}  Qd7 {[%clk 0:01:45]} 18. f4 {[%clk 0:01:30]}  Nd3 {[%clk 0:01:44]} 19. Bxd3 {[%clk 0:01:26]}  Bc5 {[%clk 0:01:44]} 20. Bc2 {[%clk 0:00:28]}  Bxd4+ {[%clk 0:01:44]} 21. Be3 {[%clk 0:00:28]}  Bxe3+ {[%clk 0:01:41]} 22. Qxe3 {[%clk 0:00:28]}  Qc6 {[%clk 0:01:41]} 23. Rd2 {[%clk 0:00:15]}  b4 {[%clk 0:01:33]} 24. Ne2 {[%clk 0:00:13]}  Nxe4 {[%clk 0:01:25]} 25. Nd4 {[%clk 0:00:14]}  Qd5 {[%clk 0:01:25]} 26. Bxe4 {[%clk 0:00:13]}  Qxe4 {[%clk 0:01:26]} 27. Qxe4 {[%clk 0:00:13]}  Bxe4 {[%clk 0:01:27]} 28. Nxe6 {[%clk 0:00:13]}  Rf6 {[%clk 0:01:26]} 29. Nc5 {[%clk 0:00:08]}  Bc6 {[%clk 0:01:20]} 30. Rd4 {[%clk 0:00:08]}  Bb5 {[%clk 0:01:18]} 31. Rad1 {[%clk 0:00:08]}  Rc8 {[%clk 0:01:15]} 32. Rd8+ {[%clk 0:00:07]}  Rf8 {[%clk 0:01:15]} 33. Rxf8+ {[%clk 0:00:06]}  Kxf8 {[%clk 0:01:15]} 34. Ne6+ {[%clk 0:00:06]}  Kf7 {[%clk 0:01:11]} 35. Ng5+ {[%clk 0:00:06]}  Kg8 {[%clk 0:01:11]} 36. Ne4 {[%clk 0:00:07]}  c3 {[%clk 0:01:09]} 37. bxc3 {[%clk 0:00:08]}  bxc3 {[%clk 0:01:10]} 38. Rc1 {[%clk 0:00:08]}  c2 {[%clk 0:01:10]} 39. Kf2 {[%clk 0:00:09]}  Bd3 {[%clk 0:01:07]} 40. Nd2 {[%clk 0:00:08]}  Re8 {[%clk 0:01:05]} 41. Nb3 {[%clk 0:00:08]}  Re2+ {[%clk 0:01:03]} 42. Kf3 {[%clk 0:00:09]}  Bc4 {[%clk 0:01:01]} 43. Nd4 {[%clk 0:00:09]}  Rd2 {[%clk 0:00:59]} 44. Nxc2 {[%clk 0:00:09]}  Bd5+ {[%clk 0:00:55]} 45. Ke3 {[%clk 0:00:08]}  Rxg2 {[%clk 0:00:55]} 46. Nb4 {[%clk 0:00:09]}  Bxa2 {[%clk 0:00:52]} 47. Rc8+ {[%clk 0:00:08]}  Kf7 {[%clk 0:00:52]} 48. Rc7+ {[%clk 0:00:09]}  Kf8 {[%clk 0:00:51]} 49. Nxa6 {[%clk 0:00:10]}  Rg3+ {[%clk 0:00:49]} 50. Ke4 {[%clk 0:00:10]}  Rxh3 {[%clk 0:00:48]} 51. Nc5 {[%clk 0:00:11]}  Bb1+ {[%clk 0:00:46]} 52. Kd4 {[%clk 0:00:10]}  Bf5 {[%clk 0:00:41]} 53. Ke5 {[%clk 0:00:08]}  Rh5 {[%clk 0:00:42]} 54. Kd6 {[%clk 0:00:07]}  h6 {[%clk 0:00:38]} 55. Nb7 {[%clk 0:00:07]}  Kg8 {[%clk 0:00:32]} 56. Nd8 {[%clk 0:00:06]}  Bg4 {[%clk 0:00:28]} 57. Kc6 {[%clk 0:00:05]}  Bf3+ {[%clk 0:00:27]} 58. Kd6 {[%clk 0:00:05]}  Rd5+ {[%clk 0:00:27]} 59. Ke7 {[%clk 0:00:05]}  Rf5 {[%clk 0:00:27]} 60. Ne6 {[%clk 0:00:05]}  Rf7+ {[%clk 0:00:15]} 61. Kd6 {[%clk 0:00:04]}  Rxc7 {[%clk 0:00:15]} 62. Kxc7 {[%clk 0:00:05]}  Kf7 {[%clk 0:00:14]} 63. Kd6 {[%clk 0:00:04]}  Kf6 {[%clk 0:00:13]} 64. Nd4 {[%clk 0:00:04]}  Be4 {[%clk 0:00:13]} 65. Kc5 {[%clk 0:00:04]}  h5 {[%clk 0:00:12]} 66. Kc4 {[%clk 0:00:04]}  h4 {[%clk 0:00:13]} 67. Ne2 {[%clk 0:00:03]}  Bf3 {[%clk 0:00:11]} 68. Ng1 {[%clk 0:00:02]}  Bg4 {[%clk 0:00:12]} 69. Kd4 {[%clk 0:00:03]}  Kf5 {[%clk 0:00:12]} 70. Ke3 {[%clk 0:00:02]}  h3 {[%clk 0:00:12]} 71. Kf2 {[%clk 0:00:02]}  h2 {[%clk 0:00:12]} 0-1


[Site "https://www.chess.com"]

[Event "Titled Tuesday Blitz May 31 Early 2022"]
[White "Swiercz, Dariusz"]
[Black "Perez Gormaz, Matias"]
[WhiteFideId "1126881"]
[BlackFideId "3406342"]
[WhiteElo "2627"]
[BlackElo "2341"]
[Result "1-0"]
[Round "06"]
[TimeControl "180+1"]
[Date "2022.05.31"]
[WhiteClock "0:01:11"]
[BlackClock "0:00:06"]

1. d4 {[%clk 0:03:00]}  d5 {[%clk 0:02:58]} 2. c4 {[%clk 0:03:00]}  e6 {[%clk 0:02:59]} 3. Nc3 {[%clk 0:02:59]}  a6 {[%clk 0:02:59]} 4. c5 {[%clk 0:02:59]}  b6 {[%clk 0:02:59]} 5. cxb6 {[%clk 0:02:59]}  c5 {[%clk 0:02:58]} 6. Nf3 {[%clk 0:02:50]}  Nc6 {[%clk 0:02:45]} 7. e3 {[%clk 0:02:35]}  cxd4 {[%clk 0:02:32]} 8. exd4 {[%clk 0:02:35]}  Qxb6 {[%clk 0:02:31]} 9. Bd3 {[%clk 0:02:34]}  Nf6 {[%clk 0:02:28]} 10. O-O {[%clk 0:02:34]}  Be7 {[%clk 0:02:28]} 11. Na4 {[%clk 0:02:33]}  Qa7 {[%clk 0:02:18]} 12. Be3 {[%clk 0:02:33]}  O-O {[%clk 0:02:18]} 13. Rc1 {[%clk 0:02:33]}  Bd7 {[%clk 0:02:10]} 14. Nc5 {[%clk 0:02:29]}  Bxc5 {[%clk 0:01:49]} 15. Rxc5 {[%clk 0:02:30]}  Ne4 {[%clk 0:01:48]} 16. Bxe4 {[%clk 0:02:22]}  dxe4 {[%clk 0:01:47]} 17. d5 {[%clk 0:02:23]}  exf3 {[%clk 0:01:37]} 18. dxc6 {[%clk 0:02:21]}  fxg2 {[%clk 0:01:34]} 19. Re1 {[%clk 0:02:22]}  Bc8 {[%clk 0:01:07]} 20. Qd6 {[%clk 0:02:21]}  Re8 {[%clk 0:00:55]} 21. Rd1 {[%clk 0:02:16]}  h6 {[%clk 0:00:33]} 22. Rc3 {[%clk 0:01:54]}  Qb8 {[%clk 0:00:30]} 23. Qxb8 {[%clk 0:01:27]}  Rxb8 {[%clk 0:00:31]} 24. c7 {[%clk 0:01:28]}  Ra8 {[%clk 0:00:21]} 25. Rd8 {[%clk 0:01:29]}  Bb7 {[%clk 0:00:20]} 26. Rxa8 {[%clk 0:01:09]}  Rxa8 {[%clk 0:00:19]} 27. Rb3 {[%clk 0:01:09]}  Bd5 {[%clk 0:00:07]} 28. Rb8+ {[%clk 0:01:10]}  Kh7 {[%clk 0:00:06]} 29. Rxa8 {[%clk 0:01:10]}  Bxa8 {[%clk 0:00:06]} 30. c8=Q {[%clk 0:01:11]} 1-0


[Site "https://www.chess.com"]

[Event "Titled Tuesday Blitz May 31 Early 2022"]
[White "Vasquez Schroeder, Rodrigo"]
[Black "Milanovic, Marko"]
[WhiteFideId "3400042"]
[BlackFideId "980129"]
[WhiteElo "2567"]
[BlackElo "2151"]
[Result "1-0"]
[Round "06"]
[TimeControl "180+1"]
[Date "2022.05.31"]
[WhiteClock "0:00:58"]
[BlackClock "0:00:04"]

1. e4 {[%clk 0:03:00]}  b6 {[%clk 0:02:54]} 2. d4 {[%clk 0:03:00]}  Bb7 {[%clk 0:02:54]} 3. Bd3 {[%clk 0:03:01]}  d6 {[%clk 0:02:55]} 4. Nf3 {[%clk 0:03:01]}  Nd7 {[%clk 0:02:55]} 5. O-O {[%clk 0:03:01]}  e5 {[%clk 0:02:56]} 6. Re1 {[%clk 0:03:01]}  Be7 {[%clk 0:02:56]} 7. c3 {[%clk 0:02:59]}  Ngf6 {[%clk 0:02:54]} 8. Nbd2 {[%clk 0:02:59]}  O-O {[%clk 0:02:54]} 9. Nf1 {[%clk 0:03:00]}  Re8 {[%clk 0:02:52]} 10. Ng3 {[%clk 0:03:01]}  Bf8 {[%clk 0:02:52]} 11. h3 {[%clk 0:03:01]}  g6 {[%clk 0:02:51]} 12. Bg5 {[%clk 0:03:00]}  h6 {[%clk 0:02:49]} 13. Bd2 {[%clk 0:03:00]}  Bg7 {[%clk 0:02:49]} 14. Qc2 {[%clk 0:02:59]}  Qe7 {[%clk 0:02:48]} 15. Rad1 {[%clk 0:02:59]}  a5 {[%clk 0:02:41]} 16. a4 {[%clk 0:02:54]}  Rad8 {[%clk 0:02:38]} 17. Bb5 {[%clk 0:02:52]}  h5 {[%clk 0:02:05]} 18. d5 {[%clk 0:02:48]}  Nh7 {[%clk 0:01:58]} 19. b4 {[%clk 0:02:43]}  Ra8 {[%clk 0:01:47]} 20. Nf1 {[%clk 0:02:36]}  Bf6 {[%clk 0:01:39]} 21. Ne3 {[%clk 0:02:35]}  Ba6 {[%clk 0:01:34]} 22. Bc6 {[%clk 0:02:31]}  Ra7 {[%clk 0:01:26]} 23. Qb3 {[%clk 0:02:20]}  Bb7 {[%clk 0:01:19]} 24. Nc4 {[%clk 0:02:14]}  Bxc6 {[%clk 0:01:04]} 25. dxc6 {[%clk 0:02:13]}  Ndf8 {[%clk 0:01:03]} 26. Ne3 {[%clk 0:02:07]}  g5 {[%clk 0:01:02]} 27. Nd5 {[%clk 0:01:59]}  Qe6 {[%clk 0:00:59]} 28. Nh2 {[%clk 0:01:56]}  Ng6 {[%clk 0:00:51]} 29. Nf1 {[%clk 0:01:51]}  g4 {[%clk 0:00:42]} 30. hxg4 {[%clk 0:01:47]}  Qxg4 {[%clk 0:00:38]} 31. Bc1 {[%clk 0:01:38]}  Kh8 {[%clk 0:00:31]} 32. Rd3 {[%clk 0:01:34]}  Rg8 {[%clk 0:00:27]} 33. Rg3 {[%clk 0:01:32]}  Qe6 {[%clk 0:00:27]} 34. Qd1 {[%clk 0:01:30]}  h4 {[%clk 0:00:24]} 35. Rf3 {[%clk 0:01:28]}  Bd8 {[%clk 0:00:19]} 36. Rf5 {[%clk 0:01:21]}  h3 {[%clk 0:00:18]} 37. g3 {[%clk 0:01:20]}  Nh4 {[%clk 0:00:17]} 38. Rh5 {[%clk 0:01:17]}  Qg6 {[%clk 0:00:17]} 39. Nh2 {[%clk 0:01:11]}  Ng2 {[%clk 0:00:16]} 40. Rh6 {[%clk 0:01:10]}  Qg7 {[%clk 0:00:13]} 41. Rf1 {[%clk 0:01:10]}  Bg5 {[%clk 0:00:12]} 42. Bxg5 {[%clk 0:01:03]}  Qxg5 {[%clk 0:00:13]} 43. Rh5 {[%clk 0:01:04]}  Qg6 {[%clk 0:00:12]} 44. Qf3 {[%clk 0:01:02]}  axb4 {[%clk 0:00:09]} 45. cxb4 {[%clk 0:01:01]}  Kg7 {[%clk 0:00:07]} 46. Ne7 {[%clk 0:00:59]}  Qf6 {[%clk 0:00:04]} 47. Rxh7+ {[%clk 0:00:58]} 1-0


[Site "https://www.chess.com"]

[Event "Titled Tuesday Blitz May 31 Early 2022"]
[White "Vlachos, Anatole"]
[Black "Rustemov, Alexander"]
[WhiteFideId "26093189"]
[BlackFideId "4119002"]
[WhiteElo "2361"]
[BlackElo "2827"]
[Result "1-0"]
[Round "06"]
[TimeControl "180+1"]
[Date "2022.05.31"]
[WhiteClock "0:00:08"]
[BlackClock "0:00:04"]

1. Nf3 {[%clk 0:02:56]}  d5 {[%clk 0:02:58]} 2. g3 {[%clk 0:02:56]}  c6 {[%clk 0:02:58]} 3. Bg2 {[%clk 0:02:56]}  Bf5 {[%clk 0:02:59]} 4. O-O {[%clk 0:02:57]}  e6 {[%clk 0:02:59]} 5. d3 {[%clk 0:02:58]}  Nf6 {[%clk 0:02:59]} 6. Nbd2 {[%clk 0:02:58]}  h6 {[%clk 0:02:58]} 7. Qe1 {[%clk 0:02:59]}  Bh7 {[%clk 0:02:58]} 8. e4 {[%clk 0:02:59]}  Be7 {[%clk 0:02:58]} 9. Qe2 {[%clk 0:03:00]}  O-O {[%clk 0:02:57]} 10. b3 {[%clk 0:03:01]}  c5 {[%clk 0:02:56]} 11. Bb2 {[%clk 0:03:01]}  Nc6 {[%clk 0:02:57]} 12. Kh1 {[%clk 0:02:48]}  Rc8 {[%clk 0:02:56]} 13. a4 {[%clk 0:02:39]}  Qc7 {[%clk 0:02:43]} 14. Rac1 {[%clk 0:02:30]}  Rfd8 {[%clk 0:02:43]} 15. h3 {[%clk 0:02:26]}  a6 {[%clk 0:02:42]} 16. Nh2 {[%clk 0:02:21]}  b5 {[%clk 0:02:41]} 17. axb5 {[%clk 0:02:21]}  axb5 {[%clk 0:02:42]} 18. f4 {[%clk 0:02:22]}  dxe4 {[%clk 0:02:35]} 19. Nxe4 {[%clk 0:02:18]}  Nd4 {[%clk 0:02:33]} 20. Qf2 {[%clk 0:02:15]}  Nxe4 {[%clk 0:02:27]} 21. dxe4 {[%clk 0:02:12]}  b4 {[%clk 0:02:14]} 22. Ng4 {[%clk 0:02:09]}  Qb6 {[%clk 0:02:07]} 23. Ne5 {[%clk 0:02:06]}  Qb5 {[%clk 0:01:46]} 24. Nc4 {[%clk 0:02:03]}  Bf6 {[%clk 0:01:34]} 25. Rfd1 {[%clk 0:01:42]}  Rd7 {[%clk 0:01:18]} 26. e5 {[%clk 0:01:34]}  Be7 {[%clk 0:01:18]} 27. Kh2 {[%clk 0:01:09]}  Rcd8 {[%clk 0:01:18]} 28. Rd2 {[%clk 0:01:04]}  Nc6 {[%clk 0:00:57]} 29. Rcd1 {[%clk 0:01:00]}  Rxd2 {[%clk 0:00:52]} 30. Rxd2 {[%clk 0:01:01]}  Rxd2 {[%clk 0:00:51]} 31. Qxd2 {[%clk 0:01:02]}  Nd4 {[%clk 0:00:51]} 32. Nd6 {[%clk 0:00:41]}  Qa6 {[%clk 0:00:34]} 33. Bxd4 {[%clk 0:00:34]}  cxd4 {[%clk 0:00:34]} 34. Qxd4 {[%clk 0:00:35]}  Qe2 {[%clk 0:00:31]} 35. Qxb4 {[%clk 0:00:30]}  Bxc2 {[%clk 0:00:27]} 36. Qc4 {[%clk 0:00:26]}  Bd3 {[%clk 0:00:25]} 37. Qc8+ {[%clk 0:00:20]}  Kh7 {[%clk 0:00:24]} 38. Qb7 {[%clk 0:00:19]}  Bf8 {[%clk 0:00:16]} 39. b4 {[%clk 0:00:09]}  Qf2 {[%clk 0:00:15]} 40. Qf3 {[%clk 0:00:09]}  Qc2 {[%clk 0:00:13]} 41. b5 {[%clk 0:00:06]}  Bg6 {[%clk 0:00:11]} 42. b6 {[%clk 0:00:06]}  Qb2 {[%clk 0:00:11]} 43. b7 {[%clk 0:00:05]}  Be7 {[%clk 0:00:11]} 44. Qe3 {[%clk 0:00:04]}  Bd8 {[%clk 0:00:10]} 45. h4 {[%clk 0:00:04]}  h5 {[%clk 0:00:10]} 46. Kh3 {[%clk 0:00:02]}  Bc7 {[%clk 0:00:11]} 47. Qc5 {[%clk 0:00:02]}  Bb8 {[%clk 0:00:11]} 48. Qc8 {[%clk 0:00:02]}  Ba7 {[%clk 0:00:10]} 49. Qc6 {[%clk 0:00:02]}  Qb1 {[%clk 0:00:10]} 50. Qf3 {[%clk 0:00:02]}  Qg1 {[%clk 0:00:09]} 51. Qf1 {[%clk 0:00:02]}  Qe3 {[%clk 0:00:08]} 52. Kh2 {[%clk 0:00:02]}  f6 {[%clk 0:00:08]} 53. Qf3 {[%clk 0:00:03]}  Qc1 {[%clk 0:00:06]} 54. Qc6 {[%clk 0:00:03]}  fxe5 {[%clk 0:00:06]} 55. Qxc1 {[%clk 0:00:03]}  exf4 {[%clk 0:00:03]} 56. gxf4 {[%clk 0:00:04]}  e5 {[%clk 0:00:03]} 57. Be4 {[%clk 0:00:04]}  Bb8 {[%clk 0:00:02]} 58. Bxg6+ {[%clk 0:00:04]}  Kxg6 {[%clk 0:00:02]} 59. Qc2+ {[%clk 0:00:04]}  Kf6 {[%clk 0:00:03]} 60. Qc8 {[%clk 0:00:05]}  Ke7 {[%clk 0:00:04]} 61. Qxb8 {[%clk 0:00:05]}  exf4 {[%clk 0:00:03]} 62. Qc7+ {[%clk 0:00:06]}  Ke6 {[%clk 0:00:04]} 63. b8=Q {[%clk 0:00:07]}  f3 {[%clk 0:00:04]} 64. Qe8+ {[%clk 0:00:07]}  Kd5 {[%clk 0:00:04]} 65. Qcc6+ {[%clk 0:00:07]}  Kd4 {[%clk 0:00:04]} 66. Qee4# {[%clk 0:00:08]} 1-0


[Site "https://www.chess.com"]

[Event "Titled Tuesday Blitz May 31 Early 2022"]
[White "Wagner, Dennis"]
[Black "Tasev, Dejan"]
[WhiteFideId "24650684"]
[BlackFideId "936618"]
[WhiteElo "2355"]
[BlackElo "2253"]
[Result "0-1"]
[Round "06"]
[TimeControl "180+1"]
[Date "2022.06.01"]
[WhiteClock "0:00:14"]
[BlackClock "0:00:29"]

1. e4 {[%clk 0:03:00]}  e5 {[%clk 0:02:58]} 2. Nf3 {[%clk 0:03:01]}  Nc6 {[%clk 0:02:57]} 3. Bc4 {[%clk 0:03:01]}  Nf6 {[%clk 0:02:57]} 4. d3 {[%clk 0:03:02]}  Bc5 {[%clk 0:02:57]} 5. c3 {[%clk 0:03:01]}  d6 {[%clk 0:02:57]} 6. O-O {[%clk 0:03:01]}  h6 {[%clk 0:02:55]} 7. Re1 {[%clk 0:02:59]}  Bb6 {[%clk 0:02:55]} 8. Nbd2 {[%clk 0:02:55]}  O-O {[%clk 0:02:50]} 9. a4 {[%clk 0:02:52]}  a6 {[%clk 0:02:48]} 10. Bb3 {[%clk 0:02:50]}  Be6 {[%clk 0:02:47]} 11. Bxe6 {[%clk 0:02:48]}  fxe6 {[%clk 0:02:44]} 12. Nc4 {[%clk 0:02:41]}  Ba7 {[%clk 0:02:42]} 13. Be3 {[%clk 0:02:33]}  Bxe3 {[%clk 0:02:39]} 14. Rxe3 {[%clk 0:02:33]}  Qe8 {[%clk 0:02:30]} 15. b4 {[%clk 0:02:27]}  Nh5 {[%clk 0:02:24]} 16. g3 {[%clk 0:02:24]}  Qf7 {[%clk 0:02:13]} 17. Ra2 {[%clk 0:02:23]}  Ne7 {[%clk 0:01:43]} 18. Nh4 {[%clk 0:01:45]}  Nf6 {[%clk 0:01:17]} 19. d4 {[%clk 0:01:27]}  exd4 {[%clk 0:01:13]} 20. cxd4 {[%clk 0:01:28]}  Ng6 {[%clk 0:01:07]} 21. Nxg6 {[%clk 0:01:26]}  Qxg6 {[%clk 0:01:07]} 22. f3 {[%clk 0:01:11]}  b5 {[%clk 0:01:00]} 23. axb5 {[%clk 0:01:05]}  axb5 {[%clk 0:00:59]} 24. Na5 {[%clk 0:01:06]}  d5 {[%clk 0:00:55]} 25. e5 {[%clk 0:01:02]}  Nd7 {[%clk 0:00:48]} 26. Qc2 {[%clk 0:01:00]}  Qg5 {[%clk 0:00:44]} 27. Rc3 {[%clk 0:00:45]}  Nb6 {[%clk 0:00:42]} 28. Kg2 {[%clk 0:00:23]}  Nc4 {[%clk 0:00:41]} 29. Nxc4 {[%clk 0:00:24]}  bxc4 {[%clk 0:00:42]} 30. Rca3 {[%clk 0:00:24]}  Rxa3 {[%clk 0:00:41]} 31. Rxa3 {[%clk 0:00:24]}  h5 {[%clk 0:00:39]} 32. h4 {[%clk 0:00:25]}  Qe7 {[%clk 0:00:38]} 33. Qd2 {[%clk 0:00:23]}  Rb8 {[%clk 0:00:38]} 34. Ra4 {[%clk 0:00:23]}  c6 {[%clk 0:00:37]} 35. Kh3 {[%clk 0:00:22]}  Rf8 {[%clk 0:00:37]} 36. Ra6 {[%clk 0:00:18]}  Rxf3 {[%clk 0:00:35]} 37. Rxc6 {[%clk 0:00:18]}  Qf7 {[%clk 0:00:36]} 38. Qg5 {[%clk 0:00:16]}  Rf5 {[%clk 0:00:33]} 39. Qd8+ {[%clk 0:00:15]}  Kh7 {[%clk 0:00:34]} 40. Rc8 {[%clk 0:00:16]}  Rf1 {[%clk 0:00:30]} 41. Qg5 {[%clk 0:00:14]}  Rh1+ {[%clk 0:00:29]} 42. Kg2 {[%clk 0:00:14]}  Qf1# {[%clk 0:00:29]} 0-1


[Site "https://www.chess.com"]

[Event "Titled Tuesday Blitz May 31 Early 2022"]
[White "Yuan, Qingyu"]
[Black "Alinasab, Mobina"]
[WhiteFideId "8609772"]
[BlackFideId "12528897"]
[WhiteElo "2359"]
[BlackElo "2031"]
[Result "1-0"]
[Round "06"]
[TimeControl "180+1"]
[Date "2022.05.31"]
[WhiteClock "0:00:16"]
[BlackClock "0:00:04"]

1. e4 {[%clk 0:03:00]}  c5 {[%clk 0:03:00]} 2. Nf3 {[%clk 0:03:01]}  e6 {[%clk 0:03:00]} 3. b3 {[%clk 0:03:01]}  d5 {[%clk 0:02:56]} 4. exd5 {[%clk 0:02:52]}  exd5 {[%clk 0:02:56]} 5. Bb2 {[%clk 0:02:46]}  Nf6 {[%clk 0:02:56]} 6. Bb5+ {[%clk 0:02:41]}  Bd7 {[%clk 0:02:49]} 7. Bxd7+ {[%clk 0:02:37]}  Nbxd7 {[%clk 0:02:48]} 8. O-O {[%clk 0:02:38]}  Be7 {[%clk 0:02:47]} 9. d4 {[%clk 0:02:37]}  O-O {[%clk 0:02:48]} 10. Nbd2 {[%clk 0:02:32]}  Rc8 {[%clk 0:02:46]} 11. Re1 {[%clk 0:02:30]}  c4 {[%clk 0:02:35]} 12. c3 {[%clk 0:02:24]}  Nb6 {[%clk 0:02:29]} 13. Ne5 {[%clk 0:02:22]}  Bd6 {[%clk 0:02:23]} 14. h3 {[%clk 0:02:09]}  Bxe5 {[%clk 0:02:21]} 15. dxe5 {[%clk 0:02:07]}  Nfd7 {[%clk 0:02:21]} 16. Ba3 {[%clk 0:01:54]}  Re8 {[%clk 0:02:20]} 17. Bd6 {[%clk 0:01:45]}  cxb3 {[%clk 0:02:12]} 18. axb3 {[%clk 0:01:45]}  a6 {[%clk 0:02:01]} 19. Re3 {[%clk 0:01:41]}  Qg5 {[%clk 0:01:52]} 20. Nf3 {[%clk 0:01:39]}  Qh5 {[%clk 0:01:29]} 21. Qd4 {[%clk 0:01:36]}  Re6 {[%clk 0:01:14]} 22. Qf4 {[%clk 0:01:24]}  f6 {[%clk 0:00:54]} 23. Rae1 {[%clk 0:00:47]}  fxe5 {[%clk 0:00:51]} 24. Bxe5 {[%clk 0:00:47]}  Rf8 {[%clk 0:00:44]} 25. Qd4 {[%clk 0:00:46]}  Nxe5 {[%clk 0:00:06]} 26. Rxe5 {[%clk 0:00:40]}  Rxe5 {[%clk 0:00:06]} 27. Nxe5 {[%clk 0:00:35]}  Nc8 {[%clk 0:00:04]} 28. Qxd5+ {[%clk 0:00:33]}  Kh8 {[%clk 0:00:04]} 29. Nf7+ {[%clk 0:00:16]} 1-0


[Site "https://www.chess.com"]

[Event "Titled Tuesday Blitz May 31 Early 2022"]
[White "Alinasab, Mobina"]
[Black "Maghsoodloo, Parham"]
[WhiteFideId "12528897"]
[BlackFideId "12539929"]
[WhiteElo "2031"]
[BlackElo "2630"]
[Result "0-1"]
[Round "07"]
[TimeControl "180+1"]
[Date "2022.05.31"]
[WhiteClock "0:00:01"]
[BlackClock "0:02:09"]

1. e4 {[%clk 0:03:00]}  c5 {[%clk 0:02:57]} 2. Nf3 {[%clk 0:03:00]}  e6 {[%clk 0:02:56]} 3. d4 {[%clk 0:03:00]}  cxd4 {[%clk 0:02:57]} 4. Nxd4 {[%clk 0:03:01]}  Nc6 {[%clk 0:02:57]} 5. Nc3 {[%clk 0:03:01]}  Qc7 {[%clk 0:02:57]} 6. g3 {[%clk 0:03:01]}  a6 {[%clk 0:02:57]} 7. Bg2 {[%clk 0:03:01]}  Bc5 {[%clk 0:02:56]} 8. Be3 {[%clk 0:02:50]}  d6 {[%clk 0:02:53]} 9. O-O {[%clk 0:02:48]}  Nf6 {[%clk 0:02:53]} 10. Re1 {[%clk 0:02:46]}  Ne5 {[%clk 0:02:48]} 11. Na4 {[%clk 0:01:54]}  Ba7 {[%clk 0:02:46]} 12. b3 {[%clk 0:01:53]}  b5 {[%clk 0:02:44]} 13. Nb2 {[%clk 0:01:53]}  Nfg4 {[%clk 0:02:41]} 14. c4 {[%clk 0:01:43]}  Nxe3 {[%clk 0:02:37]} 15. fxe3 {[%clk 0:01:29]}  bxc4 {[%clk 0:02:36]} 16. Rc1 {[%clk 0:01:24]}  c3 {[%clk 0:02:26]} 17. Na4 {[%clk 0:01:23]}  O-O {[%clk 0:02:26]} 18. Nxc3 {[%clk 0:01:21]}  Qe7 {[%clk 0:02:24]} 19. Nf3 {[%clk 0:01:05]}  Ng4 {[%clk 0:02:22]} 20. Nd4 {[%clk 0:01:04]}  Ne5 {[%clk 0:02:20]} 21. Nf3 {[%clk 0:01:03]}  Nxf3+ {[%clk 0:02:17]} 22. Qxf3 {[%clk 0:01:04]}  Bb7 {[%clk 0:02:17]} 23. Qf4 {[%clk 0:00:48]}  Rac8 {[%clk 0:02:16]} 24. e5 {[%clk 0:00:44]}  Bxg2 {[%clk 0:02:15]} 25. Kxg2 {[%clk 0:00:45]}  d5 {[%clk 0:02:12]} 26. Ne2 {[%clk 0:00:22]}  Qa3 {[%clk 0:02:11]} 27. h4 {[%clk 0:00:07]}  Qxa2 {[%clk 0:02:09]} 28. Kf1 {[%clk 0:00:06]}  Qxb3 {[%clk 0:02:08]} 29. Nd4 {[%clk 0:00:03]}  Qd3+ {[%clk 0:02:08]} 30. Kg2 {[%clk 0:00:03]}  Rxc1 {[%clk 0:02:08]} 31. Rxc1 {[%clk 0:00:01]}  Qd2+ {[%clk 0:02:09]} 0-1


[Site "https://www.chess.com"]